bitfinex-derivatives/quotes_SOLF0:USTF0_20241017
["timestamp","ask_amount","ask_price","bid_price","bid_amount"]
[1729162325312,3.286,152.2,152.17,3.2864]
[1729162325717,3.286,152.2,152.14,4.77039799]
[1729162327713,3.286,152.2,152.18,3.2863]
[1729162329826,3.286,152.2,152.17,3.2865]
[1729162330619,3.286,152.2,152.14,4.77039799]
[1729162330820,3.2862,152.19,152.14,4.77039799]
[1729162331217,20.58,152.19,152.15,3.2869]
[1729162332115,3.2865,152.18,152.15,3.2869]
[1729162336629,15.76,152.17,152.13,1.3818]
[1729162336834,15.76,152.17,152.14,3.2872]
[1729162336835,19.0467,152.17,152.14,3.2872]
[1729162337023,19.0467,152.17,152.15,3.31558737]
[1729162337222,19.0467,152.17,152.13,1.3818]
[1729162337423,19.0467,152.17,152.14,3.2872]
[1729162337625,19.0467,152.17,152.15,3.28237889]
[1729162337822,19.0467,152.17,152.14,3.2872]
[1729162339036,3.2868,152.16,152.14,3.2872]
[1729162339624,15.76,152.17,152.14,3.2872]
[1729162339833,19.0467,152.17,152.13,3.32643767]
[1729162340130,4.82,152.19,152.17,3.2864]
[1729162340633,8.1062,152.19,152.17,3.2864]
[1729162341727,8.1062,152.19,152.16,3.2867]
[1729162341931,8.1062,152.19,152.1,1.4097]
[1729162341932,3.2866,152.17,152.1,1.4097]
[1729162342437,3.2866,152.17,152.14,3.287]
[1729162342638,3.2866,152.17,152.14,6.60719365]
[1729162343735,3.2869,152.16,152.13,3.2872]
[1729162343931,3.2869,152.16,152.13,3.31854654]
[1729162344127,3.2869,152.16,152.1,1.4097]
[1729162345637,3.287,152.15,152.13,3.2873]
[1729162345835,3.287,152.15,152.13,6.54173116]
[1729162349240,3.2868,152.16,152.14,3.2872]
[1729162350337,3.2868,152.16,152.13,6.54173116]
[1729162353442,15.76,152.17,152.13,3.25443116]
[1729162353647,3.2872,152.14,152.12,3.2876]
[1729162353940,10.1,152.13,152.09,91.41678013]
[1729162354148,10.1,152.11,152.1,3.2881]
[1729162355746,10.1,152.11,152.09,4.7437]
[1729162355942,15.79,152.11,152.09,4.7437]
[1729162356138,19.0781,152.11,152.09,1.4555]
[1729162356348,15.79,152.11,152.06,3.2888]
[1729162356548,15.79,152.11,152.05,2.7821]
[1729162356849,19.078,152.11,152.08,3.2883]
[1729162357344,15.79,152.11,152.05,2.7821]
[1729162357544,6.5719,152.2,152.05,2.7821]
[1729162357545,15.79,152.13,152.05,2.7821]
[1729162357750,3.2873,152.14,152.06,15.79]
[1729162357945,8.1073,152.14,152.06,15.79]
[1729162358245,8.1073,152.14,152.11,3.2878]
[1729162358549,8.1073,152.14,152.12,3.32084293]
[1729162358848,8.1073,152.14,152.11,3.2878]
[1729162362356,3.2873,152.14,152.12,3.2876]
[1729162363545,15.79,152.17,152.12,3.24300295]
[1729162363751,4.82,152.16,152.09,15.79]
[1729162364052,4.82,152.17,152.1,1.4338]
[1729162364454,4.82,152.17,152.11,1.3909]
[1729162364651,8.1067,152.17,152.11,1.3909]
[1729162367155,3.2869,152.16,152.11,1.3909]
[1729162367358,15.79,152.17,152.11,1.3909]
[1729162367657,20.61,152.17,152.11,1.3909]
[1729162368152,4.82,152.17,152.15,3.2869]
[1729162368962,4.82,152.18,152.14,3.35461249]
[1729162369164,4.82,152.18,152.11,1.3909]
[1729162369461,20.61,152.19,152.11,1.3909]
[1729162369657,23.8963,152.19,152.11,1.3909]
[1729162370750,20.61,152.19,152.16,3.2866]
[1729162370951,3.2864,152.18,152.16,3.2866]
[1729162375867,10.11,152.17,152.16,3.2866]
[1729162380258,13.3964,152.18,152.16,3.2866]
[1729162384870,3.2858,152.21,152.19,3.2861]
[1729162385077,3.2858,152.21,152.15,3.35076863]
[1729162385078,1.4623,152.27,152.17,10.11]
[1729162385266,10.11,152.24,152.19,10.11]
[1729162385462,3.2853,152.23,152.2,3.2857]
[1729162385664,3.2853,152.23,152.19,10.11]
[1729162386366,3.2853,152.23,152.21,3.2857]
[1729162387770,8.105,152.25,152.22,3.2853]
[1729162387967,3.285,152.25,152.23,3.33115117]
[1729162388174,3.285,152.25,152.2,10.11]
[1729162388779,18.2148,152.26,152.23,3.2851]
[1729162388978,4.82,152.26,152.23,3.25730594]
[1729162389175,14.93,152.26,152.24,3.2849]
[1729162389476,10.11,152.26,152.24,3.2849]
[1729162390273,4.82,152.27,152.23,3.25927808]
[1729162390475,4.82,152.27,152.25,3.2847]
[1729162391870,8.1044,152.27,152.25,3.2847]
[1729162392170,14.93,152.27,152.2,14.93]
[1729162392370,10.11,152.25,152.2,14.93]
[1729162392668,10.11,152.25,152.23,3.2852]
[1729162392872,10.11,152.25,152.24,3.23377626]
[1729162393073,10.11,152.25,152.24,6.51887626]
[1729162393277,3.2847,152.26,152.24,3.2851]
[1729162393886,3.2847,152.26,152.24,6.64801701]
[1729162394375,14.93,152.27,152.24,3.36291701]
[1729162394582,14.93,152.27,152.21,10.11]
[1729162394983,3.2847,152.26,152.23,3.2851]
[1729162395179,3.2847,152.26,152.24,3.28175221]
[1729162395679,14.93,152.27,152.24,3.28175221]
[1729162395982,13.3948,152.25,152.24,3.28175221]
[1729162399678,10.11,152.25,152.22,3.2854]
[1729162399882,10.11,152.23,152.18,1.3881]
[1729162400080,4.82,152.27,152.19,3.2859]
[1729162400081,10.11,152.21,152.19,3.2859]
[1729162400280,10.11,152.21,152.17,6.2661]
[1729162401488,10.11,152.21,152.2,3.2859]
[1729162401987,3.2856,152.22,152.2,3.2859]
[1729162406289,10.11,152.21,152.2,3.2859]
[1729162407497,10.11,152.21,152.19,3.286]
[1729162407990,13.3958,152.21,152.19,3.286]
[1729162410299,13.3954,152.23,152.21,3.2856]
[1729162417811,3.2854,152.23,152.21,3.2856]
[1729162419804,10.11,152.22,152.21,3.2856]
[1729162422115,4.82,152.27,152.2,10.11]
[1729162422311,14.93,152.28,152.23,10.11]
[1729162422516,3.2845,152.27,152.25,3.2847]
[1729162430216,3.2844,152.28,152.25,3.2847]
[1729162430417,13.3944,152.28,152.25,3.2847]
[1729162430619,10.11,152.28,152.25,3.2847]
[1729162430925,3.2844,152.27,152.25,3.2847]
[1729162440427,1.0813,152.27,152.25,3.2847]
[1729162440624,384.4151,152.31,152.26,14.91]
[1729162440935,384.4151,152.31,152.3,10.11]
[1729162441128,384.4151,152.31,152.3,14.91]
[1729162441328,384.4151,152.31,152.3,18.1938]
[1729162442337,384.4151,152.31,152.3,13.3938]
[1729162444330,377.3458,152.31,152.3,13.3938]
[1729162445236,374.1458,152.31,152.3,16.65236567]
[1729162445627,10.11,152.37,152.34,3.2827]
[1729162445834,10.11,152.37,152.33,10.11]
[1729162446140,10.11,152.37,152.35,3.2826]
[1729162446340,4.6367,152.39,152.35,3.2826]
[1729162446534,14.7467,152.39,152.33,10.11]
[1729162446733,14.7467,152.39,152.34,3.2827]
[1729162446935,14.7467,152.39,152.33,10.11]
[1729162447244,4.6367,152.39,152.36,3.2825]
[1729162447434,14.7467,152.39,152.36,3.2825]
[1729162448139,4.6367,152.39,152.36,3.2825]
[1729162448339,14.7467,152.39,152.36,3.2825]
[1729162450144,4.6367,152.39,152.36,3.2825]
[1729162450349,10.11,152.38,152.36,3.2825]
[1729162452939,4.6367,152.39,152.36,10.11]
[1729162452940,1.3548,152.39,152.36,10.11]
[1729162453134,11.4933,152.41,152.36,10.11]
[1729162453340,11.4933,152.41,152.39,3.2817]
[1729162453540,11.4933,152.41,152.39,6.54597511]
[1729162453741,1.3833,152.41,152.39,3.26427511]
[1729162453942,11.4933,152.41,152.36,14.91]
[1729162454143,11.4933,152.41,152.39,3.2817]
[1729162454356,11.4933,152.41,152.4,3.22782294]
[1729162454541,1.3833,152.41,152.39,3.2817]
[1729162454742,10.11,152.4,152.39,3.2817]
[1729162454948,10.11,152.4,152.39,6.6257758]
[1729162455147,10.11,152.4,152.39,3.2817]
[1729162455649,10.11,152.4,152.39,6.56732097]
[1729162457143,11.4933,152.41,152.39,6.56732097]
[1729162459448,3.2804,152.46,152.4,10.11]
[1729162459647,13.3904,152.46,152.41,10.11]
[1729162459845,13.3904,152.46,152.42,3.20617393]
[1729162460054,13.3904,152.46,152.43,3.2808]
[1729162460247,13.3907,152.45,152.4,4.8]
[1729162460442,6.1966,152.46,152.41,3.30171889]
[1729162460643,6.1966,152.46,152.4,3.2816]
[1729162460844,10.11,152.42,152.4,6.55409724]
[1729162461048,10.11,152.44,152.4,6.55409724]
[1729162461651,6.1966,152.46,152.41,3.2813]
[1729162461945,10.11,152.45,152.4,10.11]
[1729162462457,16.3066,152.46,152.4,18.12865059]
[1729162463158,19.5871,152.46,152.42,3.281]
[1729162463353,14.7871,152.46,152.41,10.11]
[1729162464151,14.7871,152.46,152.43,3.2809]
[1729162466056,11.5066,152.46,152.41,3.29461429]
[1729162466256,10.11,152.44,152.4,4.8]
[1729162466459,10.11,152.42,152.38,4.8]
[1729162466662,1.3966,152.46,152.38,8.13367683]
[1729162466957,10.11,152.42,152.38,18.24367683]
[1729162467463,3.2807,152.45,152.41,3.2812]
[1729162467662,10.11,152.45,152.42,10.11]
[1729162468762,10.11,152.45,152.43,3.2809]
[1729162470866,4.677,152.46,152.43,3.2809]
[1729162471060,2.8298,152.47,152.45,3.2804]
[1729162471365,2.8298,152.47,152.46,3.32667373]
[1729162471761,16.2199,152.47,152.46,3.32667373]
[1729162471967,16.2199,152.47,152.44,3.2807]
[1729162474568,10.11,152.46,152.41,10.11]
[1729162474763,10.11,152.45,152.42,3.2811]
[1729162475365,13.3907,152.45,152.42,3.2811]
[1729162477555,13.3907,152.45,152.4,4.8]
[1729162477770,13.3907,152.45,152.43,3.281]
[1729162479470,3.2809,152.44,152.41,3.2813]
[1729162479671,10.11,152.43,152.4,4.8]
[1729162480265,13.3911,152.43,152.41,3.2814]
[1729162480766,3.2807,152.45,152.42,3.2811]
[1729162481068,13.3907,152.45,152.42,3.2811]
[1729162481265,10.11,152.45,152.42,3.2811]
[1729162482362,3.2808,152.44,152.42,3.2811]
[1729162483760,13.3906,152.45,152.42,3.2811]
[1729162488178,3.2806,152.45,152.42,3.2811]
[1729162488479,13.3906,152.45,152.42,3.2811]
[1729162492684,3.2806,152.45,152.42,10.11]
[1729162492883,3.2806,152.45,152.43,3.2809]
[1729162493090,13.3906,152.45,152.43,3.2809]
[1729162493295,3.2806,152.45,152.43,3.2809]
[1729162493983,13.3906,152.45,152.43,3.2809]
[1729162494591,4.8,152.46,152.4,10.11]
[1729162494789,8.0804,152.46,152.42,10.11]
[1729162494987,18.1904,152.46,152.42,10.11]
[1729162495192,14.91,152.46,152.42,10.11]
[1729162495489,3.2807,152.45,152.41,10.11]
[1729162497595,3.2807,152.45,152.43,3.2809]
[1729162498884,2.8298,152.47,152.43,10.11]
[1729162499085,2.8298,152.47,152.39,4.8]
[1729162499402,6.11,152.47,152.44,3.2807]
[1729162499987,6.11,152.47,152.45,3.2805]
[1729162501093,6.11,152.47,152.43,10.11]
[1729162501289,3.2804,152.46,152.43,3.2809]
[1729162502501,6.11,152.47,152.43,10.11]
[1729162502696,2.8298,152.47,152.43,10.11]
[1729162503205,2.8298,152.47,152.45,3.2804]
[1729162504402,6.11,152.47,152.45,3.2804]
[1729162507800,2.8298,152.47,152.45,3.2804]
[1729162508602,6.1099,152.47,152.45,3.2804]
[1729162512306,2.8298,152.47,152.45,3.2804]
[1729162513504,6.1099,152.47,152.45,3.2804]
[1729162513699,4.8,152.48,152.46,3.28499333]
[1729162513900,8.0801,152.48,152.46,3.28499333]
[1729162514104,4.8,152.48,152.46,3.28499333]
[1729162514807,8.08,152.48,152.46,3.28499333]
[1729162515202,3.2801,152.47,152.46,3.28499333]
[1729162517210,1.3238,152.49,152.47,3.2801]
[1729162517508,1.3238,152.49,152.47,6.58948877]
[1729162517702,2.8353,152.52,152.47,3.30938877]
[1729162517930,2.8353,152.52,152.42,4.8]
[1729162517931,2.8353,152.52,152.48,10.11]
[1729162518102,2.8353,152.52,152.4,6.5629]
[1729162518103,12.9453,152.52,152.46,10.11]
[1729162518402,12.9453,152.52,152.46,6.63455246]
[1729162518403,13.3898,152.49,152.46,6.63455246]
[1729162519210,3.2798,152.49,152.46,6.63455246]
[1729162519407,3.2798,152.49,152.46,3.35435246]
[1729162519408,13.3898,152.49,152.46,3.35435246]
[1729162519611,3.2798,152.49,152.47,3.2801]
[1729162521011,13.3893,152.51,152.48,3.2798]
[1729162521211,10.11,152.51,152.47,10.11]
[1729162521903,3.2796,152.5,152.47,13.39]
[1729162522102,3.2796,152.5,152.47,10.11]
[1729162523112,6.1144,152.52,152.49,3.2796]
[1729162523312,2.8353,152.52,152.49,3.2796]
[1729162523605,6.1144,152.52,152.49,3.2796]
[1729162524202,6.1144,152.52,152.48,10.11]
[1729162524203,16.2244,152.52,152.48,10.11]
[1729162524400,16.2244,152.52,152.46,3.25753864]
[1729162524609,16.2244,152.52,152.47,10.11]
[1729162524913,6.1144,152.52,152.49,3.2796]
[1729162525737,16.2244,152.52,152.49,6.60408553]
[1729162526906,12.9453,152.52,152.49,3.32448553]
[1729162527108,12.9453,152.52,152.5,3.2795]
[1729162527306,12.9453,152.52,152.49,3.32448553]
[1729162528010,16.2245,152.52,152.49,3.2795]
[1729162528215,16.2245,152.52,152.5,3.29430295]
[1729162528405,16.2245,152.52,152.49,3.2795]
[1729162528607,16.2245,152.52,152.5,3.35566099]
[1729162528912,16.2245,152.52,152.49,3.2795]
[1729162529409,16.2245,152.52,152.5,3.3540204]
[1729162531311,3.2792,152.51,152.5,3.3540204]
[1729162531803,2.8353,152.52,152.47,10.11]
[1729162532004,2.8353,152.52,152.47,13.43099075]
[1729162532412,6.1145,152.52,152.48,3.2798]
[1729162534420,3.2793,152.51,152.48,3.2798]
[1729162536018,10.11,152.49,152.47,3.32099075]
[1729162536217,10.11,152.49,152.45,4.8]
[1729162536720,13.3898,152.49,152.46,3.2802]
[1729162537025,13.3898,152.49,152.46,6.60272109]
[1729162537318,13.3898,152.49,152.46,3.2802]
[1729162537713,3.2798,152.49,152.47,3.28]
[1729162537911,13.3895,152.5,152.45,14.91]
[1729162538120,10.11,152.5,152.45,14.91]
[1729162538316,10.11,152.5,152.46,3.2802]
[1729162538517,3.2798,152.49,152.46,6.50864675]
[1729162539027,10.11,152.5,152.46,6.50864675]
[1729162539215,2.8353,152.52,152.46,6.50864675]
[1729162539216,10.11,152.49,152.46,6.50864675]
[1729162539516,10.11,152.5,152.46,6.50864675]
[1729162540019,3.2797,152.49,152.46,6.50864675]
[1729162540218,10.11,152.5,152.46,6.50864675]
[1729162540420,3.2798,152.49,152.46,6.50864675]
[1729162541830,3.2794,152.51,152.48,13.3897]
[1729162542019,12.9453,152.52,152.48,13.3897]
[1729162542324,3.2794,152.51,152.48,13.3897]
[1729162543027,3.2796,152.5,152.47,3.28]
[1729162543227,3.2796,152.5,152.47,13.39]
[1729162546424,3.2796,152.5,152.47,3.28]
[1729162550729,12.9453,152.52,152.46,13.33844675]
[1729162551034,12.9453,152.52,152.48,10.11]
[1729162551737,3.2794,152.51,152.49,3.27023796]
[1729162551936,3.2794,152.51,152.48,13.3898]
[1729162552235,2.8353,152.52,152.48,10.11]
[1729162552436,6.1145,152.52,152.48,13.35038026]
[1729162553167,3.2793,152.51,152.49,3.2796]
[1729162553334,2.8353,152.52,152.49,3.2796]
[1729162554438,3.2793,152.51,152.49,3.2796]
[1729162555839,6.1145,152.52,152.49,3.2796]
[1729162561942,2.8353,152.52,152.5,3.2793]
[1729162562737,6.1145,152.52,152.49,3.2796]
[1729162564754,2.8353,152.52,152.49,3.2796]
[1729162565050,3.2793,152.51,152.49,3.2796]
[1729162565645,10.11,152.51,152.48,3.24038026]
[1729162565848,10.11,152.5,152.45,104.68810572]
[1729162566046,10.11,152.51,152.47,10.11]
[1729162566243,10.11,152.51,152.47,13.3370388]
[1729162566747,13.3894,152.51,152.48,3.2798]
[1729162567142,3.2795,152.5,152.48,3.2798]
[1729162567349,2.8353,152.52,152.48,3.2797]
[1729162568553,3.2794,152.51,152.49,3.2797]
[1729162568951,3.2796,152.5,152.47,13.3370388]
[1729162569156,10.11,152.49,152.47,3.2270388]
[1729162569458,10.11,152.49,152.45,94.57810572]
[1729162569667,13.3898,152.49,152.47,3.2801]
[1729162569865,3.2798,152.49,152.48,3.3518318]
[1729162570567,3.2793,152.51,152.49,3.2796]
[1729162570963,10.11,152.53,152.49,3.2796]
[1729162571571,3.2792,152.52,152.49,3.2796]
[1729162573667,3.2793,152.51,152.49,3.2796]
[1729162575275,3.2796,152.5,152.48,3.2898216]
[1729162575574,10.11,152.49,152.47,3.2801]
[1729162575975,3.2799,152.48,152.47,3.2787684]
[1729162576179,13.3899,152.48,152.45,93.05850572]
[1729162576372,10.11,152.48,152.45,89.77810572]
[1729162576574,3.2802,152.47,152.46,3.33553651]
[1729162577074,3.2802,152.47,152.45,89.77810572]
[1729162577378,13.39,152.48,152.46,3.23578214]
[1729162577877,13.39,152.48,152.45,93.05850572]
[1729162578282,3.28,152.48,152.45,93.05850572]
[1729162578477,3.28,152.48,152.45,103.16850572]
[1729162578877,10.11,152.49,152.46,13.3902]
[1729162578878,3.2798,152.49,152.46,13.3902]
[1729162579179,3.2798,152.49,152.47,3.24157319]
[1729162579479,3.2799,152.48,152.47,3.24157319]
[1729162580883,3.2798,152.49,152.47,3.24157319]
[1729162582272,13.3898,152.49,152.47,3.24157319]
[1729162587182,3.2799,152.48,152.47,3.24157319]
[1729162591890,3.2799,152.48,152.46,3.2802]
[1729162592295,3.2799,152.48,152.46,6.60249676]
[1729162596597,10.11,152.49,152.46,3.32229676]
[1729162596793,10.11,152.47,152.37,6.5642]
[1729162597001,10.11,152.45,152.39,1.64136543]
[1729162597318,13.3905,152.45,152.43,3.281]
[1729162597992,13.3905,152.45,152.44,3.35401712]
[1729162598192,13.3905,152.45,152.43,3.281]
[1729162598598,13.3905,152.45,152.43,6.55286626]
[1729162599492,3.2805,152.45,152.43,6.55286626]
[1729162602302,3.2802,152.47,152.44,3.2806]
[1729162602500,3.2802,152.47,152.43,13.38186626]
[1729162603100,3.2802,152.47,152.44,3.2807]
[1729162603302,3.2802,152.47,152.43,13.38186626]
[1729162603708,3.2805,152.46,152.44,3.2807]
[1729162604605,3.2805,152.46,152.44,6.60857823]
[1729162605105,3.2805,152.46,152.44,3.32787823]
[1729162605413,3.2805,152.46,152.42,10.11]
[1729162605594,3.2805,152.46,152.42,13.46358087]
[1729162606599,3.2805,152.46,152.44,3.2807]
[1729162610208,3.2805,152.46,152.43,3.2808]
[1729162611410,14.89,152.48,152.43,3.2808]
[1729162612110,3.2805,152.46,152.43,3.2808]
[1729162616614,3.2802,152.47,152.44,3.2805]
[1729162616913,14.89,152.48,152.44,3.2805]
[1729162617213,3.2803,152.47,152.44,3.2805]
[1729162621314,13.3903,152.47,152.44,3.2805]
[1729162626424,3.2803,152.47,152.44,3.2805]
[1729162626623,13.3903,152.47,152.44,3.2805]
[1729162627120,10.11,152.47,152.42,13.46358087]
[1729162627425,3.2805,152.46,152.43,1.64120125]
[1729162627615,3.2805,152.46,152.42,13.46358087]
[1729162627816,3.2805,152.46,152.43,1.64119185]
[1729162628017,3.2805,152.46,152.42,13.46358087]
[1729162628213,3.2805,152.46,152.43,1.6411934]
[1729162628422,3.2805,152.46,152.44,3.2807]
[1729162634529,3.2802,152.47,152.43,10.11]
[1729162634728,1.3952,152.49,152.43,10.11]
[1729162634931,10.11,152.48,152.44,1.64118842]
[1729162635127,3.2801,152.47,152.44,3.2806]
[1729162636626,3.2803,152.46,152.44,3.2806]
[1729162636826,1.3952,152.49,152.44,13.3906]
[1729162637028,10.11,152.48,152.44,13.3906]
[1729162637334,3.2803,152.47,152.44,3.2806]
[1729162640036,3.2803,152.47,152.45,3.2804]
[1729162640242,3.28,152.48,152.42,8.13358087]
[1729162640431,7.5185,152.5,152.42,8.13358087]
[1729162640734,10.11,152.49,152.44,13.3906]
[1729162640937,3.2802,152.47,152.45,1.6411113]
[1729162641137,3.2802,152.47,152.44,13.3906]
[1729162641331,3.2802,152.47,152.45,4.92160191]
[1729162641530,3.2802,152.47,152.45,3.2805]
[1729162643335,7.5185,152.5,152.42,3.35358087]
[1729162643336,10.11,152.46,152.42,3.35358087]
[1729162643524,10.11,152.45,152.43,1.64120594]
[1729162643728,7.5185,152.5,152.43,3.22591662]
[1729162643928,10.11,152.44,152.41,4.78]
[1729162644130,13.3907,152.44,152.42,4.92243916]
[1729162644426,13.3907,152.44,152.43,1.64134731]
[1729162644637,13.3907,152.44,152.42,6.5552626]
[1729162646241,10.11,152.44,152.42,6.5552626]
[1729162646740,10.11,152.44,152.43,1.64133916]
[1729162648342,10.11,152.44,152.42,6.5552626]
[1729162648536,10.11,152.44,152.43,1.64133916]
[1729162649157,10.11,152.44,152.42,3.2741626]
[1729162649442,10.11,152.43,152.39,4.78]
[1729162649638,10.11,152.43,152.4,1.64140871]
[1729162649941,3.2812,152.42,152.41,1.64140871]
[1729162650347,10.11,152.43,152.41,1.64140871]
[1729162650536,3.2811,152.43,152.42,1.64140871]
[1729162652446,3.2811,152.43,152.4,10.11]
[1729162652745,3.2811,152.43,152.41,4.92281411]
[1729162652941,2.7509,152.44,152.42,1.64141411]
[1729162653141,3.2805,152.46,152.42,10.11]
[1729162653347,3.2805,152.46,152.43,1.64131834]
[1729162653647,3.2802,152.47,152.44,13.3906]
[1729162655344,3.2804,152.46,152.44,13.3906]
[1729162656849,3.2802,152.47,152.44,13.3906]
[1729162658346,3.2802,152.47,152.45,1.64112952]
[1729162658557,3.2802,152.47,152.44,13.3906]
[1729162659358,3.2802,152.47,152.44,3.2806]
[1729162659548,13.3902,152.47,152.44,3.2806]
[1729162660752,3.2803,152.46,152.44,3.2806]
[1729162662848,3.2803,152.47,152.44,3.2806]
[1729162663055,10.11,152.48,152.44,3.2806]
[1729162663462,3.2803,152.46,152.44,3.2806]
[1729162664657,7.4817,152.5,152.44,3.2806]
[1729162664856,3.2802,152.47,152.43,10.11]
[1729162665674,3.2802,152.47,152.44,3.2807]
[1729162667366,3.2802,152.47,152.43,10.11]
[1729162667567,3.2802,152.47,152.44,1.64117198]
[1729162667763,3.2802,152.47,152.43,10.11]
[1729162668158,3.2802,152.47,152.44,1.64116954]
[1729162668363,3.2802,152.47,152.45,3.2805]
[1729162668764,10.11,152.49,152.44,10.11]
[1729162668967,10.11,152.49,152.45,1.64108252]
[1729162668968,3.2798,152.49,152.45,1.64108252]
[1729162669269,2.7017,152.5,152.46,11.75102548]
[1729162669473,3.2798,152.49,152.46,13.3902]
[1729162670169,2.7017,152.5,152.46,10.11]
[1729162670369,5.9813,152.5,152.47,3.28]
[1729162671067,5.9813,152.5,152.47,6.55406111]
[1729162671970,3.2797,152.49,152.47,6.55406111]
[1729162672268,2.7017,152.5,152.47,16.66406111]
[1729162672765,16.0913,152.5,152.47,6.55406111]
[1729162673164,2.7017,152.5,152.47,3.27406111]
[1729162673472,2.7017,152.5,152.47,10.11]
[1729162673658,2.7017,152.5,152.47,13.35201679]
[1729162674466,1.3775,152.53,152.49,10.11]
[1729162674670,10.11,152.54,152.49,10.11]
[1729162674867,3.2789,152.53,152.5,3.2794]
[1729162675070,3.2789,152.53,152.5,6.62379627]
[1729162675268,3.2789,152.53,152.5,3.2794]
[1729162675770,3.2789,152.53,152.5,6.54208957]
[1729162678270,13.3888,152.54,152.51,3.2792]
[1729162678572,10.11,152.54,152.5,10.11]
[1729162678775,10.11,152.54,152.5,13.42650442]
[1729162678968,10.11,152.54,152.52,3.2789]
[1729162679167,10.11,152.54,152.5,13.42650442]
[1729162679463,10.11,152.54,152.52,3.279]
[1729162680075,299.48852,152.55,152.52,3.279]
[1729162680271,306.32002,152.55,152.52,3.279]
[1729162680478,3.2786,152.54,152.52,3.279]
[1729162682175,304.81842,152.55,152.52,3.279]
[1729162682974,3.2786,152.54,152.52,3.279]
[1729162683171,301.54002,152.55,152.52,3.279]
[1729162683172,291.43002,152.55,152.52,3.279]
[1729162683671,291.43002,152.55,152.52,10.11]
[1729162684277,291.43002,152.55,152.53,3.2787]
[1729162684675,291.43002,152.55,152.51,10.11]
[1729162684877,294.70852,152.55,152.52,3.2789]
[1729162685784,294.70852,152.55,152.52,3.279]
[1729162686580,294.70852,152.55,152.52,13.389]
[1729162686883,294.70852,152.55,152.53,3.2788]
[1729162687078,291.43002,152.55,152.53,3.2788]
[1729162687485,291.43002,152.55,152.52,10.11]
[1729162687686,291.43002,152.55,152.54,13.3886]
[1729162690189,291.43002,152.55,152.54,3.2786]
[1729162690380,291.43002,152.55,152.53,13.3886]
[1729162691387,291.43002,152.55,152.54,3.2786]
[1729162696406,291.43002,152.55,152.54,13.3886]
[1729162698993,291.43002,152.55,152.54,3.2786]
[1729162704995,291.43002,152.55,152.53,10.11]
[1729162705297,13.3887,152.54,152.52,3.279]
[1729162705692,13.3889,152.53,152.52,3.29049403]
[1729162705898,13.3889,152.53,152.5,3.2794]
[1729162706197,10.11,152.53,152.5,3.2794]
[1729162706401,10.11,152.53,152.51,3.2792]
[1729162707099,10.11,152.53,152.51,6.55756045]
[1729162707292,13.3886,152.54,152.51,6.55756045]
[1729162707496,10.11,152.54,152.51,6.55756045]
[1729162708528,3.2789,152.53,152.51,6.55756045]
[1729162708699,291.43002,152.55,152.52,3.279]
[1729162708906,301.54002,152.55,152.52,3.279]
[1729162709505,301.54002,152.55,152.52,6.60873573]
[1729162710499,3.2786,152.54,152.52,6.60873573]
[1729162711596,13.3886,152.54,152.52,6.60873573]
[1729162713501,13.3886,152.54,152.52,3.32973573]
[1729162713703,13.3886,152.54,152.51,3.2791]
[1729162714305,13.3886,152.54,152.51,6.62633591]